bitfinex-derivatives/quotes_ETHF0:USTF0_20250831
["timestamp","ask_amount","ask_price","bid_price","bid_amount"]
[1756601116429,0.248,4421.9,4420.9,3.2078]
[1756601116638,0.3055,4421.8,4420.9,3.2078]
[1756601116831,0.248,4421.9,4420.9,3.2078]
[1756601117630,0.3055,4421.8,4420.9,3.2078]
[1756601118047,0.248,4421.9,4420.3,3.2078]
[1756601118048,0.3055,4421.2,4420.3,3.2078]
[1756601118236,0.4952,4420.4,4420.3,3.2078]
[1756601118434,0.248,4420.4,4420.3,3.2078]
[1756601119130,0.3055,4421.3,4420.3,7.2078]
[1756601119332,0.248,4421.2,4421.0,3.2078]
[1756601119735,0.5535,4421.2,4420.3,3.8025747]
[1756601120041,0.3055,4421.8,4420.3,3.2078]
[1756601120243,0.248,4421.7,4420.3,3.8025747]
[1756601121036,0.3055,4421.4,4420.3,3.2078]
[1756601121244,3.2078,4421.5,4420.3,3.2078]
[1756601121538,3.2078,4421.5,4419.7,0.79292024]
[1756601121539,0.3055,4422.0,4420.5,3.2078]
[1756601121746,0.247,4422.0,4421.5,3.2078]
[1756601124838,0.3055,4422.5,4421.5,3.2078]
[1756601125037,3.2078,4422.6,4421.5,3.2078]
[1756601125038,0.3055,4422.3,4421.5,3.2078]
[1756601125235,3.2078,4422.6,4421.5,3.2078]
[1756601125433,0.1897,4421.6,4421.5,3.2078]
[1756601125635,0.93943842,4421.6,4421.5,3.2078]
[1756601125838,0.93943842,4421.6,4421.0,3.8025747]
[1756601126044,0.19723842,4421.5,4421.0,3.8025747]
[1756601126240,0.3055,4421.3,4421.0,3.2078]
[1756601126441,0.19723842,4421.2,4421.0,3.2078]
[1756601126644,0.19723842,4421.1,4421.0,3.2078]
[1756601126842,0.50273842,4421.1,4421.0,3.2078]
[1756601127042,0.69243842,4421.1,4421.0,3.2078]
[1756601128445,0.69247107,4421.1,4421.0,3.2078]
[1756601128843,0.44427107,4421.1,4421.0,3.2078]
[1756601129946,0.19727107,4421.1,4421.0,3.2078]
[1756601130142,0.44327107,4421.1,4421.0,3.2078]
[1756601130350,0.19727107,4421.1,4421.0,3.2078]
[1756601130549,0.44327107,4421.1,4421.0,3.2078]
[1756601131042,0.74877107,4421.1,4421.0,3.2078]
[1756601131245,0.50277107,4421.1,4421.0,3.2078]
[1756601131445,0.74877107,4421.1,4421.0,3.2078]
[1756601132047,0.74888881,4421.1,4421.0,3.2078]
[1756601132648,0.93858881,4421.1,4421.0,3.2078]
[1756601133452,0.69258881,4421.1,4421.0,3.2078]
[1756601133651,32.8935,4423.3,4421.0,8.22691023]
[1756601133844,0.19749944,4423.2,4422.8,3.2078]
[1756601134051,0.247,4423.1,4422.8,3.2078]
[1756601135754,32.588,4423.3,4422.8,3.2078]
[1756601136055,0.247,4423.2,4422.8,3.2078]
[1756601136245,3.2078,4423.8,4422.9,3.41]
[1756601136445,1.61893163,4426.2,4424.3,3.2078]
[1756601136651,3.5133,4427.3,4426.1,3.2078]
[1756601136854,3.51419872,4426.6,4426.1,3.2078]
[1756601137052,0.249,4426.5,4426.1,3.2078]
[1756601137254,1.3,4426.6,4426.1,3.2078]
[1756601137653,2.21419872,4426.2,4426.1,3.2078]
[1756601137951,2.21419872,4426.2,4425.6,3.2078]
[1756601138156,1.3,4426.6,4425.6,3.2078]
[1756601138456,2.21419872,4426.4,4426.1,3.2078]
[1756601138652,1.3,4426.6,4426.1,3.2078]
[1756601138956,3.51419872,4426.6,4426.1,3.2078]
[1756601139357,1.3,4426.6,4426.1,3.2078]
[1756601140259,1.3,4426.6,4426.2,0.25]
[1756601140652,1.3,4426.6,4426.1,3.4578]
[1756601141156,1.3,4426.6,4426.2,4.0]
[1756601141352,1.3,4426.6,4426.3,0.25]
[1756601141551,1.3,4426.6,4426.3,4.25]
[1756601141858,0.25,4427.7,4426.4,0.25]
[1756601142048,32.571,4428.9,4426.4,0.25]
[1756601142049,3.2078,4428.9,4427.3,3.2078]
[1756601142250,3.2078,4428.9,4428.1,3.2078]
[1756601142552,3.4588,4428.9,4428.1,3.2078]
[1756601142857,2.49659872,4428.2,4428.1,3.2078]
[1756601143158,2.21419872,4428.2,4428.1,3.2078]
[1756601143548,0.2824,4429.3,4428.1,3.2078]
[1756601143855,2.21419872,4428.3,4428.1,3.2078]
[1756601144257,0.2824,4429.3,4428.1,3.2078]
[1756601144456,0.251,4428.6,4428.1,3.2078]
[1756601144757,2.21419872,4428.2,4428.1,3.2078]
[1756601148255,0.25,4428.6,4428.1,3.2078]
[1756601148558,0.2824,4429.2,4428.1,3.2078]
[1756601148857,3.2078,4428.2,4426.9,3.2078]
[1756601149058,0.242,4427.5,4426.7,0.04230128]
[1756601149561,0.242,4427.5,4423.7,0.17916416]
[1756601149562,0.242,4427.3,4426.8,3.2078]
[1756601149764,0.242,4427.9,4426.8,3.2078]
[1756601149961,0.242,4428.5,4427.0,3.2078]
[1756601150259,0.251,4428.4,4427.0,3.2078]
[1756601150460,3.2078,4428.2,4427.0,3.2078]
[1756601150758,0.251,4428.1,4427.0,3.2078]
[1756601150962,0.251,4428.0,4427.7,0.2843]
[1756601151260,0.493,4428.0,4427.6,3.2078]
[1756601151462,0.493,4428.0,4427.7,0.2843]
[1756601151962,0.493,4428.0,4427.6,3.2078]
[1756601151963,4.0,4427.9,4427.6,3.2078]
[1756601152156,0.242,4427.8,4427.2,0.2843]
[1756601152562,0.251,4427.7,4427.1,0.2843]
[1756601153964,0.251,4427.6,4427.1,0.2843]
[1756601154165,0.251,4427.5,4427.1,0.2843]
[1756601154761,0.251,4427.6,4427.1,0.2843]
[1756601154956,0.251,4427.6,4427.5,3.4921]
[1756601155262,0.251,4427.8,4427.5,3.2078]
[1756601155452,0.242,4428.4,4427.6,0.2843]
[1756601155659,0.24594077,4429.0,4428.4,0.2843]
[1756601155854,0.251,4428.9,4428.4,0.2843]
[1756601156062,0.251,4428.9,4428.8,3.2078]
[1756601156363,0.00394077,4429.0,4428.8,3.4921]
[1756601156559,0.00394077,4429.0,4428.8,0.2843]
[1756601156560,0.251,4428.9,4428.8,0.2843]
[1756601156766,0.251,4428.9,4428.4,0.2843]
[1756601157358,0.00394077,4429.0,4428.4,0.2843]
[1756601157565,0.251,4428.9,4428.4,0.2843]
[1756601157766,0.3832,4430.0,4428.9,0.2843]
[1756601157964,0.0123,4430.0,4429.8,3.2078]
[1756601158363,0.0123,4430.0,4429.9,4.0]
[1756601158570,3.2078,4432.1,4429.9,4.0]
[1756601158772,3.2078,4432.1,4431.1,3.2078]
[1756601158973,3.2078,4432.1,4431.2,0.252]
[1756601159272,3.2078,4432.1,4431.1,3.2078]
[1756601159473,3.2078,4432.1,4431.2,0.252]
[1756601160267,3.4902,4432.1,4431.3,0.252]
[1756601160668,3.4902,4432.1,4428.5,1.18938036]
[1756601160669,3.2078,4431.4,4430.2,3.2078]
[1756601161071,0.252,4431.9,4431.2,3.2078]
[1756601161374,3.4902,4432.2,4431.2,3.2078]
[1756601161575,3.2078,4432.2,4431.2,3.2078]
[1756601162273,3.4598,4432.2,4431.2,3.2078]
[1756601162668,0.253,4432.1,4431.2,3.2078]
[1756601163076,0.2824,4432.0,4431.2,3.2078]
[1756601163282,3.2078,4431.6,4430.5,3.2078]
[1756601163482,0.2824,4431.4,4430.5,3.2078]
[1756601163681,0.253,4431.3,4430.5,3.2078]
[1756601164082,0.2824,4431.4,4430.5,3.2078]
[1756601164383,0.253,4431.3,4430.6,3.2078]
[1756601164778,0.2824,4431.4,4430.6,3.2078]
[1756601164982,0.252,4431.3,4430.6,3.2078]
[1756601165178,0.2824,4431.4,4430.6,3.2078]
[1756601165381,0.252,4431.3,4430.6,3.2078]
[1756601165591,0.2824,4431.4,4430.6,3.2078]
[1756601165774,0.2824,4431.2,4430.1,3.2078]
[1756601166079,0.5344,4431.1,4430.6,3.2078]
[1756601166575,0.252,4431.2,4430.6,3.2078]
[1756601166783,0.252,4431.1,4430.6,3.2078]
[1756601166978,0.2824,4431.0,4430.6,3.2078]
[1756601167175,0.252,4431.1,4430.6,3.2078]
[1756601167378,0.252,4431.1,4430.1,3.2078]
[1756601167379,3.2078,4430.9,4430.1,3.2078]
[1756601167690,0.2787,4430.8,4430.1,3.2078]
[1756601167986,0.252,4430.7,4430.1,3.2078]
[1756601168387,0.2787,4430.8,4430.1,3.2078]
[1756601168781,35.7328,4431.5,4430.6,3.2078]
[1756601168782,0.252,4431.0,4430.6,3.2078]
[1756601169179,0.252,4431.1,4430.6,3.2078]
[1756601169688,0.252,4431.2,4430.6,3.2078]
[1756601169885,3.4598,4431.5,4430.6,3.2078]
[1756601170082,0.2787,4431.4,4430.6,3.2078]
[1756601170787,3.2078,4431.5,4430.6,3.2078]
[1756601170788,0.252,4431.3,4430.6,3.2078]
[1756601170985,3.2078,4431.5,4430.6,3.2078]
[1756601171386,0.251,4432.3,4431.1,3.2078]
[1756601171594,0.2787,4432.4,4431.1,3.4588]
[1756601171889,0.251,4432.2,4431.1,3.4588]
[1756601172183,3.2078,4432.5,4431.1,3.2078]
[1756601172184,0.2787,4432.1,4431.1,3.2078]
[1756601172383,3.2078,4432.5,4431.6,3.2078]
[1756601172591,0.251,4432.4,4431.6,3.2078]
[1756601172984,0.251,4432.5,4431.6,3.2078]
[1756601173381,0.00593251,4432.7,4431.6,3.2078]
[1756601173581,3.2078,4434.0,4432.6,3.2078]
[1756601173782,0.00593251,4433.0,4432.6,3.2078]
[1756601174088,0.00593251,4433.0,4432.4,3.2078]
[1756601174287,0.2787,4433.3,4432.4,3.2078]
[1756601174585,0.2787,4433.3,4432.9,3.2078]
[1756601174985,0.2787,4433.6,4432.9,3.2078]
[1756601175192,0.28463251,4433.3,4432.9,3.2078]
[1756601175591,0.2787,4432.9,4432.4,3.2078]
[1756601175784,0.00593251,4432.8,4432.4,3.2078]
[1756601176090,0.00593251,4432.9,4432.4,3.2078]
[1756601176589,0.2787,4433.4,4432.4,3.2078]
[1756601176992,0.00593251,4432.9,4432.4,3.2078]
[1756601177494,0.2787,4433.4,4432.4,3.2078]
[1756601177690,0.00593251,4433.0,4432.4,3.2078]
[1756601177898,0.2787,4432.8,4432.4,3.2078]
[1756601178090,0.2787,4433.2,4432.4,3.2078]
[1756601178292,0.00593251,4432.5,4432.4,3.2078]
[1756601178691,0.252,4433.1,4432.4,3.2078]
[1756601178893,0.00593251,4432.5,4432.4,3.2078]
[1756601179201,0.00593251,4432.6,4432.4,3.2078]
[1756601179698,0.28463251,4432.5,4432.4,3.2078]
[1756601180191,4.00593251,4432.5,4431.4,3.2078]
[1756601180392,3.4588,4433.0,4431.4,3.2078]
[1756601180695,0.00593251,4432.2,4431.4,3.2078]
[1756601181091,0.156,4432.6,4431.4,3.4588]
[1756601181291,0.152,4432.8,4432.0,3.2078]
[1756601181495,0.00593251,4432.2,4432.0,3.2078]
[1756601181698,0.194,4432.7,4432.0,3.2078]
[1756601181897,0.2787,4434.2,4432.6,3.2078]
[1756601182100,0.00593251,4433.7,4433.3,3.2078]
[1756601182291,0.2787,4434.2,4433.3,3.2078]
[1756601182492,0.28463251,4433.5,4433.3,3.2078]
[1756601182787,0.251,4434.0,4433.2,3.2078]
[1756601182997,0.00593251,4433.5,4433.2,3.2078]
[1756601183496,0.2787,4434.1,4433.2,3.2078]
[1756601183497,1.0,4434.0,4433.2,3.2078]
[1756601183891,1.0,4434.0,4433.2,3.68435]
[1756601184291,1.0,4434.0,4433.2,3.4588]
[1756601184596,1.0,4434.0,4433.2,3.68435]
[1756601184793,1.0,4434.0,4433.2,3.4588]
[1756601186502,1.0,4434.0,4433.3,0.251]
[1756601186702,1.0,4434.0,4433.2,3.2078]
[1756601186902,1.0,4434.0,4433.3,0.25]
[1756601188303,1.0,4434.0,4433.2,3.2078]
[1756601188604,1.0,4434.0,4433.8,3.2078]
[1756601189306,1.2787,4434.0,4433.8,3.2078]
[1756601189701,1.0,4434.0,4433.8,3.2078]
[1756601190097,1.2787,4434.0,4433.8,3.2078]
[1756601190302,0.2787,4433.9,4433.8,3.2078]
[1756601190503,0.2787,4433.9,4433.3,3.2078]
[1756601191003,0.2787,4433.9,4433.8,3.2078]
[1756601192506,1.0,4434.0,4433.8,3.2078]
[1756601192804,0.00593251,4433.9,4433.8,3.2078]
[1756601193004,0.28463251,4433.9,4433.8,3.2078]
[1756601193308,4.2787,4433.9,4433.8,3.2078]
[1756601194706,0.2787,4433.9,4433.8,3.2078]
[1756601195310,1.0,4434.0,4433.8,3.2078]
[1756601195508,0.00593251,4433.9,4433.8,3.2078]
[1756601196016,1.0,4434.0,4433.8,3.2078]
[1756601196309,0.00593251,4433.9,4433.8,3.2078]
[1756601196517,1.0,4434.0,4433.8,3.2078]
[1756601196805,1.0,4434.0,4433.9,4.0]
[1756601197007,3.2078,4436.7,4433.9,4.0]
[1756601197008,0.25,4436.3,4433.9,4.0]
[1756601197317,0.2787,4435.6,4434.7,3.2078]
[1756601197613,0.2777,4435.4,4434.7,3.4578]
[1756601197809,0.00593251,4435.0,4434.7,3.4578]
[1756601198007,0.00593251,4435.1,4434.7,3.2078]
[1756601198209,0.2777,4435.8,4434.7,3.2078]
[1756601198502,0.28363251,4435.0,4434.7,3.2078]
[1756601198912,0.2777,4434.9,4434.7,3.2078]
[1756601199109,0.00593251,4435.0,4434.7,3.2078]
[1756601199416,0.5277,4435.5,4434.7,2.67503103]
[1756601199614,0.00593251,4434.9,4434.7,2.67503103]
[1756601199915,0.25,4435.5,4434.7,2.67503103]
[1756601200108,0.28363251,4434.8,4434.7,2.67503103]
[1756601200313,0.28363251,4434.8,4434.2,3.2078]
[1756601200514,0.00593251,4434.3,4434.2,3.2078]
[1756601201012,0.28363251,4434.3,4434.2,3.2078]
[1756601201207,0.2777,4434.2,4433.5,3.2078]
[1756601201609,0.00593251,4433.6,4433.5,3.2078]
[1756601202212,0.28363251,4433.6,4433.5,3.2078]
[1756601202607,0.2777,4434.9,4433.5,7.79539938]
[1756601202806,3.4855,4435.0,4434.4,3.2078]
[1756601203010,0.2777,4434.5,4434.4,3.2078]
[1756601203313,0.28363251,4434.5,4434.4,3.2078]
[1756601204210,0.28363251,4434.5,4433.9,3.4578]
[1756601204411,0.2777,4434.1,4433.9,3.2078]
[1756601204617,0.00593251,4434.0,4433.9,3.2078]
[1756601204808,0.28363251,4434.0,4433.9,3.2078]
[1756601205006,0.2777,4434.8,4433.9,7.4578]
[1756601205210,0.00593251,4434.7,4434.4,3.2078]
[1756601205519,0.2777,4435.3,4434.5,0.25]
[1756601205717,0.00593251,4435.0,4434.9,3.2078]
[1756601206218,0.2777,4435.6,4434.9,3.2078]
[1756601206515,0.00593251,4435.0,4434.9,3.2078]
[1756601206711,0.28363251,4435.0,4434.9,3.2078]
[1756601206916,0.2777,4435.6,4434.9,3.2078]
[1756601207319,0.28363251,4435.0,4434.9,3.2078]
[1756601207511,0.2777,4434.9,4434.3,3.2078]
[1756601207712,0.00593251,4434.8,4434.2,0.83759938]
[1756601207912,0.00593251,4434.8,4434.7,3.2078]
[1756601209324,0.28363251,4434.8,4434.2,3.2078]
[1756601209619,0.00593251,4434.6,4434.2,3.2078]
[1756601210218,0.2777,4434.8,4434.2,3.4568]
[1756601210413,0.00593251,4434.5,4434.2,3.4568]
[1756601210815,3.2078,4435.9,4434.2,3.4568]
[1756601210816,0.2777,4435.8,4434.2,3.4568]
[1756601211016,0.2777,4435.8,4435.4,3.2078]
[1756601211017,0.00593251,4435.6,4435.4,3.2078]
[1756601211218,3.2078,4437.0,4435.4,4.04439938]
[1756601211412,0.2777,4436.8,4436.4,3.2078]
[1756601211839,3.2078,4437.6,4436.4,3.2078]
[1756601212123,0.28363251,4436.5,4436.4,3.2078]
[1756601212620,0.28363251,4436.5,4435.8,3.2078]
[1756601212621,0.2777,4436.4,4435.8,3.2078]
[1756601212821,0.2777,4436.2,4435.2,3.2078]
[1756601213218,1.19502673,4437.5,4434.5,32.489]
[1756601213219,0.95477158,4436.9,4435.9,3.2078]
[1756601213420,0.95477158,4436.9,4435.6,3.2078]
[1756601213727,3.2078,4436.7,4435.6,3.2078]
[1756601214217,0.00593251,4435.7,4434.9,3.2078]
[1756601214411,0.00593251,4435.2,4434.9,3.2078]
[1756601214818,0.2777,4435.6,4434.9,3.2078]
[1756601215025,0.00593251,4435.3,4434.9,3.2078]
[1756601215321,0.00593251,4435.5,4434.9,3.2078]
[1756601215520,0.2777,4436.1,4435.4,3.2078]
[1756601215720,0.2777,4436.5,4436.0,3.2078]
[1756601215920,0.2777,4436.7,4436.0,3.2078]
[1756601216225,0.00593251,4436.1,4436.0,3.2078]
[1756601216427,0.28363251,4436.1,4435.5,3.4578]
[1756601216618,3.2078,4436.8,4435.6,0.25]
[1756601216820,0.00593251,4435.7,4435.6,0.25]
[1756601217327,0.2777,4435.9,4435.6,0.25]
[1756601217626,0.00593251,4435.7,4435.6,0.25]
[1756601218122,0.2777,4435.9,4435.6,0.25]
[1756601218322,1.70577158,4436.9,4435.6,0.25]
[1756601218323,0.00593251,4435.7,4435.6,0.25]
[1756601218824,0.2777,4436.4,4435.6,0.249]
[1756601219025,0.00593251,4435.7,4435.6,0.249]
[1756601219225,0.00593251,4435.7,4435.6,3.2078]
[1756601219423,0.2777,4436.4,4435.6,3.4568]
[1756601219627,0.2777,4436.4,4436.3,3.2078]
[1756601220330,4.4709,4436.4,4436.3,3.2078]
[1756601220525,0.4709,4436.4,4436.3,3.2078]
[1756601220825,1.70577158,4436.9,4436.3,3.2078]
[1756601221023,1.70577158,4436.9,4436.8,3.2078]
[1756601221220,1.70577158,4436.9,4436.8,3.4568]
[1756601221421,1.70577158,4436.9,4436.8,3.2078]
[1756601221724,1.98347158,4436.9,4436.8,3.2078]
[1756601221928,1.70577158,4436.9,4436.8,3.2078]
[1756601222730,1.98347158,4436.9,4436.8,3.2078]
[1756601223625,1.98347158,4436.9,3724.3,1.00852385]
[1756601223626,1.70577158,4436.9,4436.3,3.2078]
[1756601223834,0.2777,4436.7,4435.8,3.2078]
[1756601224124,0.28363251,4435.9,4435.8,3.2078]
[1756601224329,1.70577158,4436.9,4435.9,0.22541]
[1756601224534,1.70577158,4436.9,4436.8,3.2078]
[1756601224930,1.70577158,4436.9,4436.8,3.4568]
[1756601225125,1.70577158,4436.9,4436.8,3.2078]
[1756601225525,1.70577158,4436.9,4436.8,7.68218999]
[1756601225829,0.2777,4439.2,4436.8,40.16018999]
[1756601226029,0.2777,4439.2,4438.1,3.2078]
[1756601226230,0.2777,4439.2,4438.1,3.4578]
[1756601226927,0.1,4440.2,4438.1,7.4578]
[1756601227129,0.1,4440.2,4439.3,3.2078]
[1756601227321,1.71170409,4440.0,4439.9,3.2078]
[1756601227526,0.1,4440.2,4439.9,3.2078]
[1756601227723,1.71170409,4440.0,4439.9,3.2078]
[1756601227920,0.1,4440.2,4439.9,3.2078]
[1756601228525,2.00920409,4440.0,4439.9,3.2078]
[1756601228731,2.00920409,4440.0,4439.3,3.4578]
[1756601228927,0.2975,4440.0,4439.3,3.2078]
[1756601229131,2.00920409,4439.4,4439.3,3.2078]
[1756601229629,0.2975,4440.1,4439.3,3.4588]
[1756601229829,0.1,4440.2,4439.9,3.2078]
[1756601230027,1.71170409,4440.1,4440.0,0.251]
[1756601230225,0.1,4440.2,4439.9,3.2078]
[1756601230522,0.1,4440.2,4440.0,0.251]
[1756601230721,1.71170409,4440.1,4440.0,0.251]
[1756601231236,1.71170409,4440.1,4439.9,3.2078]
[1756601231237,0.2975,4440.0,4439.9,3.2078]
[1756601231422,0.2975,4440.0,4439.3,3.2078]
[1756601231423,5.71170409,4440.0,4439.3,3.2078]
[1756601231737,0.2975,4439.3,4438.4,0.251]
[1756601231932,0.2975,4439.3,4438.7,3.2078]
[1756601232231,1.71170409,4438.8,4438.7,3.2078]
[1756601232532,1.71170409,4439.6,4438.7,7.4588]
[1756601232733,0.2975,4440.1,4439.5,3.2078]
[1756601232933,0.28683838,4440.1,4439.5,3.2078]
[1756601233135,1.71170409,4439.6,4439.5,3.2078]
[1756601233730,5.71170409,4439.6,4438.8,3.2078]
[1756601233935,0.251,4439.7,4438.8,3.2078]
[1756601234138,0.251,4439.7,4438.0,3.2176]
[1756601234139,1.71170409,4438.9,4438.0,3.2176]
[1756601234343,0.1,4440.2,4436.9,0.0098]
[1756601234344,3.2078,4438.2,4436.9,0.0098]
[1756601234537,3.2078,4437.7,4436.7,0.0098]
[1756601234829,0.251,4437.6,4436.6,3.2078]
[1756601235030,1.71170409,4436.9,4436.6,3.2078]
[1756601235331,1.71170409,4436.9,4436.7,0.0098]
[1756601235534,0.251,4437.7,4436.7,0.0098]
[1756601235832,0.2975,4438.1,4437.2,0.0098]
[1756601236036,0.2975,4438.1,4437.5,3.2078]
[1756601236229,1.71170409,4437.6,4437.4,3.2078]
[1756601236430,0.2975,4438.2,4437.5,3.2078]
[1756601236627,0.2975,4438.2,4435.3,0.98975679]
[1756601236628,1.71170409,4437.5,4436.9,0.2608]
[1756601237139,0.2975,4438.2,4436.9,0.2608]
[1756601237140,0.2975,4438.2,4437.3,3.2078]
[1756601237334,0.2975,4437.4,4436.8,3.2078]
[1756601237541,1.71170409,4436.9,4436.8,3.2078]
[1756601237833,2.00920409,4436.9,4436.8,3.2078]
[1756601238038,0.2975,4436.9,4436.8,3.2078]
[1756601238234,0.2975,4436.8,4436.3,3.2078]
[1756601238435,0.2975,4436.6,4436.3,3.2078]
[1756601238630,0.2975,4437.2,4436.4,0.0098]
[1756601238831,0.2975,4437.2,4436.3,3.2078]
[1756601238832,0.2975,4437.2,4436.9,3.2176]
[1756601239342,2.00920409,4437.0,4436.9,3.2078]
[1756601240035,0.252,4437.6,4436.9,7.2078]
[1756601240231,2.61893163,4440.1,4437.5,0.0098]
[1756601240232,3.5053,4438.8,4437.5,0.0098]
[1756601240542,0.2975,4439.5,4438.7,3.2176]
[1756601240740,1.71170409,4439.5,4439.3,3.2078]
[1756601241036,1.71170409,4439.4,4439.0,3.2078]
[1756601241233,1.71170409,4439.4,4439.1,0.0098]
[1756601241439,0.2975,4439.9,4439.1,0.0098]
[1756601241631,1.71170409,4439.4,4439.1,0.0098]
[1756601241831,1.71170409,4439.5,4439.1,0.0098]
[1756601242039,0.2975,4439.9,4439.1,0.0096]
[1756601242240,1.71170409,4439.6,4439.5,3.2078]
[1756601242630,0.2975,4440.0,4439.5,3.2078]
[1756601242835,1.0,4440.1,4439.5,3.2078]
[1756601243036,2.00920409,4439.6,4439.5,3.2078]
[1756601244838,1.0,4440.1,4439.5,3.2078]
[1756601245045,2.00920409,4439.8,4439.5,3.2078]
[1756601245347,2.00920409,4439.7,4439.5,3.2078]
[1756601245642,1.71170409,4439.6,4439.5,3.2078]
[1756601246042,1.0,4440.1,4439.5,3.2078]
[1756601246238,1.71170409,4439.6,4439.5,3.2174]
[1756601246644,1.251,4440.1,4439.5,3.2174]
[1756601246843,1.71170409,4439.6,4439.5,3.2174]
[1756601247043,1.251,4440.1,4439.5,3.2174]
[1756601247244,1.71170409,4439.7,4439.6,0.0096]
[1756601247644,0.2975,4440.0,4439.5,3.2078]
[1756601247846,1.0,4440.1,4439.5,3.2078]
[1756601248048,1.71170409,4439.8,4439.5,3.2078]
[1756601248340,2.00920409,4439.8,4439.5,3.2078]
[1756601248545,2.00920409,4439.8,4439.5,3.2174]
[1756601248843,1.71170409,4439.7,4439.5,3.2174]
[1756601249143,2.00920409,4439.6,4439.0,3.2174]
[1756601249643,1.71170409,4439.3,4439.0,3.2174]
[1756601249840,1.71170409,4439.3,4439.0,3.2078]
[1756601250042,0.2975,4439.6,4439.0,3.2078]
[1756601250241,1.71170409,4439.3,4439.0,3.2078]
[1756601250440,1.0,4440.1,4439.0,3.2078]
[1756601250441,0.2975,4439.1,4439.0,3.2078]
[1756601250841,0.2975,4439.1,4438.5,3.2078]
[1756601250842,5.71170409,4439.1,4438.5,3.2078]
[1756601251041,3.4578,4439.5,4438.5,3.2078]
[1756601251249,0.2975,4439.4,4438.5,3.2078]
[1756601251440,1.71170409,4438.6,4437.9,3.2078]
[1756601251742,1.0,4440.1,4437.9,3.2078]
[1756601251743,3.4578,4438.5,4437.9,3.2078]
[1756601251948,1.71170409,4438.6,4437.9,3.2174]
[1756601252342,0.2975,4438.7,4437.9,3.2174]
[1756601252646,0.2975,4438.7,4438.0,0.25]
[1756601252842,1.71170409,4438.5,4438.0,0.25]
[1756601253350,0.2975,4438.7,4438.1,0.0096]
[1756601253547,1.71170409,4438.5,4438.0,0.25]
[1756601253753,1.71170409,4438.5,4438.4,3.2078]
[1756601254050,1.71170409,4438.5,4437.1,0.58736184]
[1756601254051,0.25,4438.9,4437.8,3.2078]
[1756601254441,0.2975,4438.5,4437.8,3.2078]
[1756601254752,2.00920409,4437.9,4437.1,3.2078]
[1756601255048,0.2975,4437.2,4437.1,3.2078]
[1756601255446,3.2078,4438.6,4437.1,3.2078]
[1756601255447,0.2975,4438.5,4437.1,3.2078]
[1756601255649,0.5475,4438.4,4437.3,3.2078]
[1756601255948,2.00920409,4438.0,4437.8,3.2174]
[1756601256143,0.2975,4437.9,4437.3,3.2078]
[1756601256350,0.2975,4438.3,4437.3,3.2078]
[1756601256550,2.00920409,4437.4,4437.3,3.2078]
[1756601256944,0.2975,4437.4,4437.3,3.2078]
[1756601259149,4.0,4437.4,4436.8,3.2078]
[1756601259449,0.2868,4437.4,4436.8,3.2078]
[1756601259657,0.2868,4436.8,4436.0,3.2078]
[1756601259852,1.71170409,4436.1,4436.0,3.2078]
[1756601260154,1.99850409,4436.1,4436.0,3.2078]
[1756601260355,2.24850409,4436.1,4436.0,3.2078]
[1756601260751,2.24850409,4436.1,4435.5,0.0106]
[1756601261061,0.2868,4436.0,4435.4,3.2078]
[1756601261244,0.25,4436.1,4435.4,3.2078]
[1756601261452,1.71170409,4435.5,4435.4,3.2078]
[1756601261651,2.24850409,4435.5,4435.4,3.2078]
[1756601261856,0.2868,4435.4,4434.9,3.2078]
[1756601262157,1.99850409,4435.0,4434.9,3.2078]
[1756601262352,3.2078,4436.0,4434.9,3.2078]
[1756601262353,0.25,4435.7,4435.0,0.0106]
[1756601262553,3.2078,4436.5,4435.5,0.0106]
[1756601262760,0.25,4437.3,4436.2,0.0106]
[1756601262951,1.71170409,4437.0,4436.2,0.0106]
[1756601263349,0.2868,4436.9,4436.1,3.2078]
[1756601263553,0.2868,4437.2,4436.1,3.2078]
[1756601263750,3.2078,4437.0,4436.1,3.2078]
[1756601263950,1.71170409,4436.2,4435.6,3.2078]
[1756601264151,0.2868,4438.1,4436.0,3.2078]
[1756601264366,0.2868,4437.6,4436.6,3.2078]
[1756601264661,0.2868,4437.4,4436.4,3.2078]
[1756601264955,0.25,4437.3,4437.1,0.0106]
[1756601265157,1.71170409,4437.2,4437.1,0.0106]
[1756601265558,0.25,4437.3,4437.1,0.0106]
[1756601265764,1.71170409,4437.2,4437.1,0.0106]
[1756601266154,0.25,4437.3,4437.1,0.0106]
[1756601266353,0.2868,4437.6,4437.1,0.0106]
[1756601266559,1.71170409,4437.4,4437.0,3.2184]
[1756601266759,0.2868,4437.4,4437.0,3.2078]
[1756601267057,0.2868,4437.2,4437.0,3.2078]
[1756601267362,1.71170409,4437.4,4437.1,0.0106]
[1756601267562,0.25,4437.4,4437.1,0.0106]
[1756601268264,0.2868,4437.8,4437.1,0.0106]
[1756601268265,0.25,4437.5,4437.1,0.0106]
[1756601268759,1.96170409,4437.5,4437.0,3.2078]
[1756601268954,0.25,4437.5,4436.5,3.2078]
[1756601269165,0.2868,4436.7,4436.5,3.2078]
[1756601269465,0.2868,4436.7,4436.5,3.2184]
[1756601269663,0.2868,4436.7,4436.6,0.0106]
[1756601269856,0.25,4436.8,4436.5,3.2078]
[1756601270057,0.2868,4436.6,4436.0,3.2078]
[1756601270357,1.99850409,4436.1,4436.0,3.2078]
[1756601270558,2.24850409,4436.1,4436.0,3.2078]
[1756601272662,0.5368,4436.1,4436.0,3.2078]